[Event "Titled Tuesday Blitz November 15 Early 2022"]
[White "Georg, Heinz"]
[Black "Jeet, Jain"]
[WhiteFideId "4607295"]
[BlackFideId "5073022"]
[WhiteElo "2310"]
[BlackElo "2067"]
[Result "1-0"]
[Round "04"]
[TimeControl "180+1"]
[Date "2022.11.16"]
[WhiteClock "0:01:30"]
[BlackClock "0:00:10"]

1. e4 {[%clk 0:03:00]}  c6 {[%clk 0:02:44]} 2. d4 {[%clk 0:02:59]}  d5 {[%clk 0:02:22]} 3. exd5 {[%clk 0:02:59]}  cxd5 {[%clk 0:02:21]} 4. c4 {[%clk 0:02:59]}  Nf6 {[%clk 0:02:18]} 5. Nc3 {[%clk 0:02:59]}  g6 {[%clk 0:00:57]} 6. cxd5 {[%clk 0:02:57]}  Bg7 {[%clk 0:00:57]} 7. Bc4 {[%clk 0:02:57]}  O-O {[%clk 0:00:57]} 8. Nge2 {[%clk 0:02:57]}  Nbd7 {[%clk 0:00:57]} 9. Nf4 {[%clk 0:02:46]}  Nb6 {[%clk 0:00:55]} 10. Bb3 {[%clk 0:02:46]}  Bg4 {[%clk 0:00:34]} 11. f3 {[%clk 0:02:29]}  Bf5 {[%clk 0:00:30]} 12. g4 {[%clk 0:02:24]}  Bd7 {[%clk 0:00:29]} 13. O-O {[%clk 0:02:21]}  a5 {[%clk 0:00:29]} 14. a4 {[%clk 0:02:20]}  Rc8 {[%clk 0:00:29]} 15. Qd3 {[%clk 0:02:18]}  Qc7 {[%clk 0:00:20]} 16. Nfe2 {[%clk 0:01:52]}  Qd6 {[%clk 0:00:20]} 17. Bf4 {[%clk 0:01:51]}  e5 {[%clk 0:00:19]} 18. dxe6 {[%clk 0:01:47]}  Qb4 {[%clk 0:00:16]} 19. exd7 {[%clk 0:01:45]}  Nfxd7 {[%clk 0:00:14]} 20. Nb5 {[%clk 0:01:30]}  Nf6 {[%clk 0:00:10]} 21. Bd6 {[%clk 0:01:30]} 1-0


[Site "https://www.chess.com"]

[Event "Titled Tuesday Blitz November 15 Early 2022"]
[White "Gheorghiu, Calin"]
[Black "Kiseljova, Marya"]
[WhiteFideId "1200305"]
[BlackFideId "4155009"]
[WhiteElo "2225"]
[BlackElo "1907"]
[Result "1-0"]
[Round "04"]
[TimeControl "180+1"]
[Date "2022.11.16"]
[WhiteClock "0:00:21"]
[BlackClock "0:00:38"]

1. d4 {[%clk 0:03:00]}  d5 {[%clk 0:02:58]} 2. Nf3 {[%clk 0:02:59]}  Nf6 {[%clk 0:02:58]} 3. Bf4 {[%clk 0:02:58]}  e6 {[%clk 0:02:56]} 4. e3 {[%clk 0:02:57]}  c5 {[%clk 0:02:56]} 5. Nbd2 {[%clk 0:02:55]}  Nc6 {[%clk 0:02:56]} 6. c3 {[%clk 0:02:53]}  Nh5 {[%clk 0:02:55]} 7. Be5 {[%clk 0:02:50]}  f6 {[%clk 0:02:46]} 8. Bg3 {[%clk 0:02:40]}  Nxg3 {[%clk 0:02:44]} 9. hxg3 {[%clk 0:02:40]}  Qb6 {[%clk 0:02:39]} 10. Rb1 {[%clk 0:02:33]}  e5 {[%clk 0:02:11]} 11. dxe5 {[%clk 0:02:03]}  fxe5 {[%clk 0:02:10]} 12. Ng5 {[%clk 0:01:39]}  Bf5 {[%clk 0:01:55]} 13. e4 {[%clk 0:01:30]}  Bg6 {[%clk 0:01:51]} 14. exd5 {[%clk 0:01:17]}  Bxb1 {[%clk 0:01:43]} 15. Qxb1 {[%clk 0:01:18]}  Ne7 {[%clk 0:01:37]} 16. Nc4 {[%clk 0:01:02]}  Qg6 {[%clk 0:01:06]} 17. Qxg6+ {[%clk 0:00:54]}  Nxg6 {[%clk 0:01:07]} 18. Bd3 {[%clk 0:00:54]}  Ne7 {[%clk 0:00:54]} 19. Nd6+ {[%clk 0:00:46]}  Kd7 {[%clk 0:00:54]} 20. Ndf7 {[%clk 0:00:42]}  h6 {[%clk 0:00:53]} 21. Nf3 {[%clk 0:00:38]}  Rg8 {[%clk 0:00:51]} 22. N3xe5+ {[%clk 0:00:37]}  Kc7 {[%clk 0:00:48]} 23. d6+ {[%clk 0:00:37]}  Kb6 {[%clk 0:00:48]} 24. Bh7 {[%clk 0:00:33]}  Nd5 {[%clk 0:00:40]} 25. Bxg8 {[%clk 0:00:29]}  Bxd6 {[%clk 0:00:40]} 26. Nxd6 {[%clk 0:00:22]}  Rxg8 {[%clk 0:00:41]} 27. O-O {[%clk 0:00:21]}  Re8 {[%clk 0:00:38]} 28. Nxe8 {[%clk 0:00:21]} 1-0


[Site "https://www.chess.com"]

[Event "Titled Tuesday Blitz November 15 Early 2022"]
[White "Gholami Orimi, Mahdi"]
[Black "Cruz, Jonathan"]
[WhiteFideId "12558486"]
[BlackFideId "3802124"]
[WhiteElo "2330"]
[BlackElo "2406"]
[Result "0-1"]
[Round "04"]
[TimeControl "180+1"]
[Date "2022.11.15"]
[WhiteClock "0:00:08"]
[BlackClock "0:00:08"]

1. d4 {[%clk 0:03:00]}  d5 {[%clk 0:02:55]} 2. Nf3 {[%clk 0:03:01]}  Nf6 {[%clk 0:02:55]} 3. Bf4 {[%clk 0:03:01]}  e6 {[%clk 0:02:45]} 4. e3 {[%clk 0:03:01]}  Bd6 {[%clk 0:02:45]} 5. Nbd2 {[%clk 0:02:57]}  c5 {[%clk 0:02:43]} 6. Bg3 {[%clk 0:02:55]}  Nc6 {[%clk 0:02:41]} 7. c3 {[%clk 0:02:55]}  O-O {[%clk 0:02:29]} 8. Ne5 {[%clk 0:02:49]}  Bxe5 {[%clk 0:02:27]} 9. dxe5 {[%clk 0:02:49]}  Nd7 {[%clk 0:02:28]} 10. f4 {[%clk 0:02:47]}  c4 {[%clk 0:02:25]} 11. e4 {[%clk 0:02:45]}  Nc5 {[%clk 0:02:10]} 12. Qc2 {[%clk 0:02:40]}  b5 {[%clk 0:02:01]} 13. Bf2 {[%clk 0:02:30]}  Nxe4 {[%clk 0:01:57]} 14. Nxe4 {[%clk 0:02:30]}  dxe4 {[%clk 0:01:58]} 15. Qxe4 {[%clk 0:02:31]}  Bb7 {[%clk 0:01:58]} 16. Rd1 {[%clk 0:02:28]}  Qa5 {[%clk 0:01:44]} 17. a3 {[%clk 0:02:27]}  Rad8 {[%clk 0:01:41]} 18. Be2 {[%clk 0:02:26]}  Qc7 {[%clk 0:01:32]} 19. Qe3 {[%clk 0:02:25]}  Rxd1+ {[%clk 0:01:27]} 20. Bxd1 {[%clk 0:02:26]}  a6 {[%clk 0:01:17]} 21. O-O {[%clk 0:02:25]}  Rd8 {[%clk 0:01:06]} 22. Bc2 {[%clk 0:02:26]}  Ne7 {[%clk 0:01:05]} 23. Qg3 {[%clk 0:02:25]}  Rd2 {[%clk 0:01:02]} 24. Rc1 {[%clk 0:02:18]}  Qd7 {[%clk 0:00:58]} 25. Qg4 {[%clk 0:01:16]}  Nf5 {[%clk 0:00:57]} 26. Bxf5 {[%clk 0:01:12]}  exf5 {[%clk 0:00:56]} 27. Qg3 {[%clk 0:01:08]}  Rxb2 {[%clk 0:00:51]} 28. h3 {[%clk 0:01:02]}  h6 {[%clk 0:00:49]} 29. Kh2 {[%clk 0:01:01]}  Qd5 {[%clk 0:00:47]} 30. Rg1 {[%clk 0:00:59]}  Rd2 {[%clk 0:00:46]} 31. Bd4 {[%clk 0:00:58]}  Qf3 {[%clk 0:00:36]} 32. h4 {[%clk 0:00:32]}  Qxg3+ {[%clk 0:00:33]} 33. Kxg3 {[%clk 0:00:33]}  Be4 {[%clk 0:00:33]} 34. h5 {[%clk 0:00:33]}  Kh7 {[%clk 0:00:31]} 35. Kh3 {[%clk 0:00:33]}  Rd3+ {[%clk 0:00:27]} 36. Kh4 {[%clk 0:00:30]}  a5 {[%clk 0:00:22]} 37. g4 {[%clk 0:00:26]}  b4 {[%clk 0:00:20]} 38. axb4 {[%clk 0:00:24]}  axb4 {[%clk 0:00:20]} 39. g5 {[%clk 0:00:24]}  hxg5+ {[%clk 0:00:18]} 40. fxg5 {[%clk 0:00:25]}  bxc3 {[%clk 0:00:17]} 41. g6+ {[%clk 0:00:24]}  fxg6 {[%clk 0:00:16]} 42. hxg6+ {[%clk 0:00:22]}  Kg8 {[%clk 0:00:16]} 43. Rb1 {[%clk 0:00:16]}  Kf8 {[%clk 0:00:12]} 44. Bc5+ {[%clk 0:00:11]}  Ke8 {[%clk 0:00:12]} 45. e6 {[%clk 0:00:04]}  Rh3+ {[%clk 0:00:09]} 46. Kxh3 {[%clk 0:00:04]}  Bxb1 {[%clk 0:00:10]} 47. Kg3 {[%clk 0:00:03]}  Be4 {[%clk 0:00:06]} 48. Kf4 {[%clk 0:00:03]}  c2 {[%clk 0:00:06]} 49. Ba3 {[%clk 0:00:04]}  c3 {[%clk 0:00:04]} 50. Ke5 {[%clk 0:00:03]}  Bd3 {[%clk 0:00:04]} 51. Bc1 {[%clk 0:00:03]}  f4 {[%clk 0:00:03]} 52. Bxf4 {[%clk 0:00:04]}  Bxg6 {[%clk 0:00:04]} 53. Bc1 {[%clk 0:00:03]}  Bd3 {[%clk 0:00:04]} 54. Bg5 {[%clk 0:00:03]}  Bh7 {[%clk 0:00:04]} 55. Bc1 {[%clk 0:00:04]}  Bg6 {[%clk 0:00:04]} 56. Bg5 {[%clk 0:00:05]}  Kf8 {[%clk 0:00:04]} 57. Kd4 {[%clk 0:00:05]}  Bf5 {[%clk 0:00:03]} 58. Ke5 {[%clk 0:00:06]}  g6 {[%clk 0:00:02]} 59. Kf6 {[%clk 0:00:06]}  Ke8 {[%clk 0:00:02]} 60. Bc1 {[%clk 0:00:06]}  Bd3 {[%clk 0:00:03]} 61. Bh6 {[%clk 0:00:05]}  Bf5 {[%clk 0:00:04]} 62. Bc1 {[%clk 0:00:06]}  Bd3 {[%clk 0:00:04]} 63. Bg5 {[%clk 0:00:06]}  Be4 {[%clk 0:00:04]} 64. Bc1 {[%clk 0:00:07]}  Bf5 {[%clk 0:00:04]} 65. Bg5 {[%clk 0:00:08]}  Bg4 {[%clk 0:00:05]} 66. Ke5 {[%clk 0:00:08]}  Bh3 {[%clk 0:00:05]} 67. Kf6 {[%clk 0:00:08]}  Kf8 {[%clk 0:00:04]} 68. Ke5 {[%clk 0:00:08]}  Ke8 {[%clk 0:00:05]} 69. Kd6 {[%clk 0:00:08]}  Bf5 {[%clk 0:00:05]} 70. Ke5 {[%clk 0:00:08]}  Bd3 {[%clk 0:00:04]} 71. Kd6 {[%clk 0:00:09]}  Bf5 {[%clk 0:00:05]} 72. Bc1 {[%clk 0:00:09]}  Bg4 {[%clk 0:00:05]} 73. Bg5 {[%clk 0:00:09]}  Bh3 {[%clk 0:00:06]} 74. Bc1 {[%clk 0:00:10]}  Bg2 {[%clk 0:00:06]} 75. Be3 {[%clk 0:00:10]}  Bf1 {[%clk 0:00:07]} 76. Bc1 {[%clk 0:00:10]}  Bc4 {[%clk 0:00:07]} 77. Bg5 {[%clk 0:00:10]}  Bb3 {[%clk 0:00:08]} 78. Ke5 {[%clk 0:00:10]}  Ba4 {[%clk 0:00:08]} 79. Kf6 {[%clk 0:00:10]}  Bb3 {[%clk 0:00:08]} 80. Bc1 {[%clk 0:00:10]}  Bd5 {[%clk 0:00:08]} 81. Bg5 {[%clk 0:00:10]}  Bc4 {[%clk 0:00:08]} 82. Bc1 {[%clk 0:00:10]}  Kd8 {[%clk 0:00:06]} 83. Kf7 {[%clk 0:00:09]}  Kc7 {[%clk 0:00:05]} 84. Kf6 {[%clk 0:00:07]}  Kd6 {[%clk 0:00:05]} 85. e7 {[%clk 0:00:08]}  Bb5 {[%clk 0:00:05]} 86. Ba3+ {[%clk 0:00:06]}  Kd5 {[%clk 0:00:05]} 87. Kxg6 {[%clk 0:00:07]}  Kc4 {[%clk 0:00:05]} 88. Kf5 {[%clk 0:00:06]}  Kb3 {[%clk 0:00:05]} 89. Bc1 {[%clk 0:00:07]}  Ka2 {[%clk 0:00:06]} 90. Ke4 {[%clk 0:00:07]}  Kb1 {[%clk 0:00:06]} 91. Be3 {[%clk 0:00:07]}  c1=Q {[%clk 0:00:07]} 92. Bxc1 {[%clk 0:00:07]}  Kxc1 {[%clk 0:00:07]} 93. Kd4 {[%clk 0:00:07]}  Kb2 {[%clk 0:00:08]} 94. Kc5 {[%clk 0:00:08]}  Be8 {[%clk 0:00:08]} 0-1


[Site "https://www.chess.com"]

[Event "Titled Tuesday Blitz November 15 Early 2022"]
[White "Ghosh, Chanchal Kumer"]
[Black "Devaev, Alexander"]
[WhiteFideId "10201858"]
[BlackFideId "4169395"]
[WhiteElo "2058"]
[BlackElo "2225"]
[Result "0-1"]
[Round "04"]
[TimeControl "180+1"]
[Date "2022.11.16"]
[WhiteClock "0:00:16"]
[BlackClock "0:00:22"]

1. e4 {[%clk 0:03:00]}  c6 {[%clk 0:02:58]} 2. Nf3 {[%clk 0:03:00]}  d5 {[%clk 0:02:59]} 3. Nc3 {[%clk 0:03:00]}  dxe4 {[%clk 0:02:57]} 4. Nxe4 {[%clk 0:02:59]}  Nf6 {[%clk 0:02:56]} 5. Ng3 {[%clk 0:02:59]}  c5 {[%clk 0:02:52]} 6. Bc4 {[%clk 0:02:56]}  Nc6 {[%clk 0:02:48]} 7. O-O {[%clk 0:02:52]}  e6 {[%clk 0:02:47]} 8. b3 {[%clk 0:02:50]}  Be7 {[%clk 0:02:45]} 9. Bb2 {[%clk 0:02:50]}  O-O {[%clk 0:02:46]} 10. Re1 {[%clk 0:02:47]}  a6 {[%clk 0:02:45]} 11. a4 {[%clk 0:02:46]}  b6 {[%clk 0:02:45]} 12. d4 {[%clk 0:02:42]}  Bb7 {[%clk 0:02:30]} 13. dxc5 {[%clk 0:02:37]}  Bxc5 {[%clk 0:02:29]} 14. Qe2 {[%clk 0:02:28]}  Qe7 {[%clk 0:02:22]} 15. Rad1 {[%clk 0:02:25]}  Bb4 {[%clk 0:02:14]} 16. Rf1 {[%clk 0:02:13]}  h6 {[%clk 0:01:50]} 17. h3 {[%clk 0:01:32]}  Bd6 {[%clk 0:01:45]} 18. Bxf6 {[%clk 0:01:26]}  gxf6 {[%clk 0:01:44]} 19. Ne4 {[%clk 0:01:14]}  Bf4 {[%clk 0:01:29]} 20. Rd7 {[%clk 0:01:09]}  Qb4 {[%clk 0:01:06]} 21. Rxb7 {[%clk 0:01:04]}  Kg7 {[%clk 0:01:04]} 22. g3 {[%clk 0:01:01]}  Rab8 {[%clk 0:00:59]} 23. Rd7 {[%clk 0:00:55]}  Ne5 {[%clk 0:00:48]} 24. Nxe5 {[%clk 0:00:34]}  Bxe5 {[%clk 0:00:48]} 25. Bxe6 {[%clk 0:00:33]}  Rbd8 {[%clk 0:00:47]} 26. Qg4+ {[%clk 0:00:28]}  Kh8 {[%clk 0:00:45]} 27. Bxf7 {[%clk 0:00:26]}  Rxd7 {[%clk 0:00:22]} 28. Qxd7 {[%clk 0:00:24]}  f5 {[%clk 0:00:23]} 29. Qxf5 {[%clk 0:00:22]}  Qe7 {[%clk 0:00:23]} 30. Re1 {[%clk 0:00:16]}  Rxf7 {[%clk 0:00:22]} 0-1


[Site "https://www.chess.com"]

[Event "Titled Tuesday Blitz November 15 Early 2022"]
[White "Ginzburg, Yakov"]
[Black "Tsaruk, Maksim"]
[WhiteFideId "4157176"]
[BlackFideId "13511173"]
[WhiteElo "2305"]
[BlackElo "2300"]
[Result "1-0"]
[Round "04"]
[TimeControl "180+1"]
[Date "2022.11.16"]
[WhiteClock "0:02:35"]
[BlackClock "0:01:37"]

1. e4 {[%clk 0:02:58]}  c6 {[%clk 0:02:56]} 2. d4 {[%clk 0:02:58]}  d5 {[%clk 0:02:56]} 3. Nc3 {[%clk 0:02:57]}  dxe4 {[%clk 0:02:56]} 4. Nxe4 {[%clk 0:02:58]}  Nf6 {[%clk 0:02:57]} 5. Nxf6+ {[%clk 0:02:57]}  exf6 {[%clk 0:02:58]} 6. Bc4 {[%clk 0:02:57]}  Bd6 {[%clk 0:02:58]} 7. Ne2 {[%clk 0:02:57]}  O-O {[%clk 0:02:58]} 8. O-O {[%clk 0:02:57]}  Qc7 {[%clk 0:02:57]} 9. Ng3 {[%clk 0:02:56]}  Nd7 {[%clk 0:02:55]} 10. Qh5 {[%clk 0:02:49]}  g6 {[%clk 0:02:50]} 11. Qh6 {[%clk 0:02:49]}  b5 {[%clk 0:02:03]} 12. Nh5 {[%clk 0:02:35]}  gxh5 {[%clk 0:01:37]} 13. Bd3 {[%clk 0:02:35]} 1-0


[Site "https://www.chess.com"]

[Event "Titled Tuesday Blitz November 15 Early 2022"]
[White "Goroshkov, Maksym"]
[Black "Melaugh, Shane"]
[WhiteFideId "14142716"]
[BlackFideId "2509580"]
[WhiteElo "2257"]
[BlackElo "2025"]
[Result "0-1"]
[Round "04"]
[TimeControl "180+1"]
[Date "2022.11.16"]
[WhiteClock "0:00:53"]
[BlackClock "0:00:13"]

1. e4 {[%clk 0:03:00]}  c5 {[%clk 0:02:57]} 2. b4 {[%clk 0:02:59]}  e5 {[%clk 0:02:53]} 3. bxc5 {[%clk 0:02:56]}  Bxc5 {[%clk 0:02:54]} 4. Nc3 {[%clk 0:02:56]}  Nf6 {[%clk 0:02:52]} 5. Nf3 {[%clk 0:02:55]}  Ng4 {[%clk 0:02:46]} 6. d4 {[%clk 0:02:52]}  exd4 {[%clk 0:02:46]} 7. Nxd4 {[%clk 0:02:40]}  Nxf2 {[%clk 0:02:36]} 8. Kxf2 {[%clk 0:02:38]}  Qf6+ {[%clk 0:02:36]} 9. Ke3 {[%clk 0:02:38]}  Nc6 {[%clk 0:02:36]} 10. Nb5 {[%clk 0:02:33]}  O-O {[%clk 0:02:25]} 11. c3 {[%clk 0:02:31]}  d5 {[%clk 0:02:09]} 12. Nc7 {[%clk 0:02:20]}  Qg5+ {[%clk 0:01:38]} 13. Kd3 {[%clk 0:02:19]}  dxe4+ {[%clk 0:01:38]} 14. Kc2 {[%clk 0:02:19]}  e3 {[%clk 0:01:31]} 15. Nxa8 {[%clk 0:02:14]}  Bxd4 {[%clk 0:01:24]} 16. Bd3 {[%clk 0:02:07]}  Bxc3 {[%clk 0:01:04]} 17. Kxc3 {[%clk 0:01:43]}  Qe5+ {[%clk 0:01:04]} 18. Kc2 {[%clk 0:01:38]}  Qxa1 {[%clk 0:00:51]} 19. Bb2 {[%clk 0:01:30]}  Qxa2 {[%clk 0:00:43]} 20. Qa1 {[%clk 0:01:25]}  Qd5 {[%clk 0:00:31]} 21. Bc3 {[%clk 0:01:13]}  Be6 {[%clk 0:00:21]} 22. Nc7 {[%clk 0:00:56]}  Qxg2+ {[%clk 0:00:21]} 23. Kc1 {[%clk 0:00:48]}  Qxh1+ {[%clk 0:00:21]} 24. Kb2 {[%clk 0:00:49]}  Qxa1+ {[%clk 0:00:15]} 25. Kxa1 {[%clk 0:00:49]}  Bg4 {[%clk 0:00:10]} 26. Nd5 {[%clk 0:00:47]}  Rd8 {[%clk 0:00:09]} 27. Nf4 {[%clk 0:00:46]}  g5 {[%clk 0:00:06]} 28. Bf6 {[%clk 0:00:46]}  gxf4 {[%clk 0:00:04]} 29. Bxd8 {[%clk 0:00:46]}  f3 {[%clk 0:00:05]} 30. Kb2 {[%clk 0:00:46]}  f2 {[%clk 0:00:03]} 31. Bh4 {[%clk 0:00:46]}  Ne5 {[%clk 0:00:04]} 32. Bf1 {[%clk 0:00:44]}  Nf3 {[%clk 0:00:04]} 33. Bg3 {[%clk 0:00:44]}  Nd2 {[%clk 0:00:04]} 34. Bg2 {[%clk 0:00:43]}  f1=Q {[%clk 0:00:05]} 35. Bxf1 {[%clk 0:00:44]}  Nxf1 {[%clk 0:00:06]} 36. Kc3 {[%clk 0:00:44]}  Nxg3 {[%clk 0:00:06]} 37. hxg3 {[%clk 0:00:44]}  e2 {[%clk 0:00:07]} 38. Kd2 {[%clk 0:00:44]}  h5 {[%clk 0:00:08]} 39. Ke1 {[%clk 0:00:45]}  Kg7 {[%clk 0:00:09]} 40. Kf2 {[%clk 0:00:45]}  Kf6 {[%clk 0:00:10]} 41. Ke1 {[%clk 0:00:46]}  b5 {[%clk 0:00:11]} 42. Kf2 {[%clk 0:00:47]}  a5 {[%clk 0:00:12]} 43. Ke1 {[%clk 0:00:48]}  Ke5 {[%clk 0:00:12]} 44. Kd2 {[%clk 0:00:48]}  b4 {[%clk 0:00:13]} 45. Ke3 {[%clk 0:00:49]}  a4 {[%clk 0:00:14]} 46. Kd2 {[%clk 0:00:50]}  Kd4 {[%clk 0:00:14]} 47. Ke1 {[%clk 0:00:50]}  Be6 {[%clk 0:00:13]} 48. Kf2 {[%clk 0:00:51]}  Kd3 {[%clk 0:00:12]} 49. Ke1 {[%clk 0:00:51]}  b3 {[%clk 0:00:13]} 50. g4 {[%clk 0:00:51]}  hxg4 {[%clk 0:00:13]} 51. Kf2 {[%clk 0:00:51]}  Kd2 {[%clk 0:00:13]} 52. Kg3 {[%clk 0:00:52]}  e1=Q+ {[%clk 0:00:13]} 53. Kf4 {[%clk 0:00:53]}  Qe3# {[%clk 0:00:13]} 0-1


[Site "https://www.chess.com"]

[Event "Titled Tuesday Blitz November 15 Early 2022"]
[White "Grigorov, Grigor"]
[Black "Aumann, Welf"]
[WhiteFideId "2907313"]
[BlackFideId "4634071"]
[WhiteElo "2510"]
[BlackElo "2262"]
[Result "1-0"]
[Round "04"]
[TimeControl "180+1"]
[Date "2022.11.16"]
[WhiteClock "0:02:07"]
[BlackClock "0:00:25"]

1. d4 {[%clk 0:03:00]}  d5 {[%clk 0:02:59]} 2. Nf3 {[%clk 0:03:00]}  Nf6 {[%clk 0:02:58]} 3. c3 {[%clk 0:03:00]}  Bf5 {[%clk 0:02:51]} 4. Bf4 {[%clk 0:02:56]}  e6 {[%clk 0:02:49]} 5. Qb3 {[%clk 0:02:57]}  Qc8 {[%clk 0:02:49]} 6. e3 {[%clk 0:02:54]}  h6 {[%clk 0:02:49]} 7. c4 {[%clk 0:02:54]}  c6 {[%clk 0:02:45]} 8. Nc3 {[%clk 0:02:54]}  Nbd7 {[%clk 0:02:41]} 9. Rc1 {[%clk 0:02:54]}  Be7 {[%clk 0:02:38]} 10. h3 {[%clk 0:02:51]}  O-O {[%clk 0:02:37]} 11. Be2 {[%clk 0:02:52]}  Ne4 {[%clk 0:02:13]} 12. cxd5 {[%clk 0:02:43]}  Nxc3 {[%clk 0:02:13]} 13. bxc3 {[%clk 0:02:43]}  exd5 {[%clk 0:02:12]} 14. c4 {[%clk 0:02:43]}  dxc4 {[%clk 0:02:07]} 15. Bxc4 {[%clk 0:02:42]}  Nb6 {[%clk 0:02:06]} 16. Be2 {[%clk 0:02:38]}  Qe6 {[%clk 0:01:52]} 17. O-O {[%clk 0:02:22]}  Qxb3 {[%clk 0:01:39]} 18. axb3 {[%clk 0:02:23]}  a5 {[%clk 0:01:36]} 19. Nd2 {[%clk 0:02:20]}  Nd5 {[%clk 0:01:24]} 20. Bg3 {[%clk 0:02:19]}  Nb4 {[%clk 0:01:23]} 21. Nc4 {[%clk 0:02:13]}  Be6 {[%clk 0:01:06]} 22. Ra1 {[%clk 0:02:11]}  Bd8 {[%clk 0:00:28]} 23. Bd6 {[%clk 0:02:09]}  Bxc4 {[%clk 0:00:25]} 24. Bxc4 {[%clk 0:02:07]} 1-0


[Site "https://www.chess.com"]

[Event "Titled Tuesday Blitz November 15 Early 2022"]
[White "Gubajdullin, Alexei"]
[Black "Li, Hui"]
[WhiteFideId "4141202"]
[BlackFideId "15400310"]
[WhiteElo "2230"]
[BlackElo "1954"]
[Result "1-0"]
[Round "04"]
[TimeControl "180+1"]
[Date "2022.11.16"]
[WhiteClock "0:00:48"]
[BlackClock "0:00:01"]

1. d4 {[%clk 0:02:58]}  Nf6 {[%clk 0:02:48]} 2. Nf3 {[%clk 0:02:57]}  d5 {[%clk 0:02:48]} 3. Bf4 {[%clk 0:02:57]}  c5 {[%clk 0:02:48]} 4. e3 {[%clk 0:02:56]}  Nc6 {[%clk 0:02:47]} 5. Nbd2 {[%clk 0:02:55]}  cxd4 {[%clk 0:02:46]} 6. exd4 {[%clk 0:02:55]}  Qb6 {[%clk 0:02:46]} 7. Nb3 {[%clk 0:02:54]}  Bg4 {[%clk 0:02:45]} 8. c3 {[%clk 0:02:53]}  e6 {[%clk 0:02:42]} 9. h3 {[%clk 0:02:52]}  Bh5 {[%clk 0:02:25]} 10. Be2 {[%clk 0:02:50]}  Be7 {[%clk 0:02:25]} 11. a4 {[%clk 0:02:48]}  a6 {[%clk 0:02:21]} 12. a5 {[%clk 0:02:46]}  Qd8 {[%clk 0:02:21]} 13. O-O {[%clk 0:02:43]}  O-O {[%clk 0:02:18]} 14. Ne1 {[%clk 0:02:43]}  Bxe2 {[%clk 0:02:05]} 15. Qxe2 {[%clk 0:02:42]}  Ne4 {[%clk 0:02:01]} 16. Nd3 {[%clk 0:02:37]}  Rc8 {[%clk 0:01:50]} 17. f3 {[%clk 0:02:33]}  Nd6 {[%clk 0:01:45]} 18. Bxd6 {[%clk 0:02:16]}  Bxd6 {[%clk 0:01:44]} 19. f4 {[%clk 0:02:16]}  Qe7 {[%clk 0:01:30]} 20. Nbc5 {[%clk 0:02:14]}  Nxa5 {[%clk 0:00:57]} 21. f5 {[%clk 0:01:33]}  Nc6 {[%clk 0:00:18]} 22. fxe6 {[%clk 0:01:25]}  fxe6 {[%clk 0:00:18]} 23. Qxe6+ {[%clk 0:01:24]}  Qxe6 {[%clk 0:00:17]} 24. Nxe6 {[%clk 0:01:23]}  Rfe8 {[%clk 0:00:16]} 25. Nec5 {[%clk 0:01:23]}  Rc7 {[%clk 0:00:11]} 26. Rfe1 {[%clk 0:01:20]}  Rce7 {[%clk 0:00:10]} 27. Nxb7 {[%clk 0:01:11]}  Rxe1+ {[%clk 0:00:10]} 28. Rxe1 {[%clk 0:01:10]}  Rxe1+ {[%clk 0:00:07]} 29. Nxe1 {[%clk 0:01:10]}  Bf4 {[%clk 0:00:07]} 30. Nd3 {[%clk 0:01:09]}  Be3+ {[%clk 0:00:06]} 31. Kf1 {[%clk 0:01:09]}  Kf7 {[%clk 0:00:06]} 32. Ke2 {[%clk 0:01:09]}  Bg5 {[%clk 0:00:07]} 33. b4 {[%clk 0:01:04]}  Ke7 {[%clk 0:00:05]} 34. Nbc5 {[%clk 0:01:00]}  a5 {[%clk 0:00:04]} 35. b5 {[%clk 0:00:59]}  Nb8 {[%clk 0:00:04]} 36. Na4 {[%clk 0:00:57]}  Kd6 {[%clk 0:00:04]} 37. Ndc5 {[%clk 0:00:55]}  Bf6 {[%clk 0:00:02]} 38. Kd3 {[%clk 0:00:55]}  Bg5 {[%clk 0:00:02]} 39. c4 {[%clk 0:00:55]}  dxc4+ {[%clk 0:00:02]} 40. Kxc4 {[%clk 0:00:55]}  Be3 {[%clk 0:00:02]} 41. b6 {[%clk 0:00:51]}  Kc6 {[%clk 0:00:01]} 42. d5+ {[%clk 0:00:50]}  Kd6 {[%clk 0:00:01]} 43. Ne4+ {[%clk 0:00:48]} 1-0


[Site "https://www.chess.com"]

[Event "Titled Tuesday Blitz November 15 Early 2022"]
[White "Guimaraes, Wagner Peixoto"]
[Black "Deev, Andrei"]
[WhiteFideId "2100940"]
[BlackFideId "4102690"]
[WhiteElo "2231"]
[BlackElo "2278"]
[Result "0-1"]
[Round "04"]
[TimeControl "180+1"]
[Date "2022.11.16"]
[WhiteClock "0:00:01"]
[BlackClock "0:00:08"]

1. d4 {[%clk 0:02:04]}  d6 {[%clk 0:02:58]} 2. Nf3 {[%clk 0:02:02]}  Bg4 {[%clk 0:02:56]} 3. g3 {[%clk 0:01:59]}  Bxf3 {[%clk 0:02:55]} 4. exf3 {[%clk 0:02:00]}  d5 {[%clk 0:02:55]} 5. Bg2 {[%clk 0:02:00]}  e6 {[%clk 0:02:55]} 6. O-O {[%clk 0:02:01]}  g6 {[%clk 0:02:53]} 7. f4 {[%clk 0:02:01]}  Bg7 {[%clk 0:02:53]} 8. c3 {[%clk 0:02:01]}  Ne7 {[%clk 0:02:52]} 9. Re1 {[%clk 0:02:02]}  O-O {[%clk 0:02:51]} 10. Qb3 {[%clk 0:02:00]}  b6 {[%clk 0:02:49]} 11. Nd2 {[%clk 0:01:57]}  c5 {[%clk 0:02:43]} 12. dxc5 {[%clk 0:01:41]}  bxc5 {[%clk 0:02:42]} 13. Qa3 {[%clk 0:01:41]}  Qb6 {[%clk 0:02:30]} 14. Nb3 {[%clk 0:01:38]}  Nd7 {[%clk 0:02:22]} 15. c4 {[%clk 0:01:21]}  Rfe8 {[%clk 0:01:57]} 16. Be3 {[%clk 0:01:16]}  Rac8 {[%clk 0:01:47]} 17. cxd5 {[%clk 0:01:04]}  exd5 {[%clk 0:01:47]} 18. Qa4 {[%clk 0:00:55]}  Qc6 {[%clk 0:01:02]} 19. Qxc6 {[%clk 0:00:46]}  Rxc6 {[%clk 0:01:00]} 20. Rad1 {[%clk 0:00:32]}  c4 {[%clk 0:00:41]} 21. Nd4 {[%clk 0:00:26]}  Ra6 {[%clk 0:00:37]} 22. Nb5 {[%clk 0:00:22]}  Rxa2 {[%clk 0:00:31]} 23. Bxa7 {[%clk 0:00:18]}  Bf6 {[%clk 0:00:21]} 24. Bxd5 {[%clk 0:00:13]}  Nf8 {[%clk 0:00:13]} 25. Bxc4 {[%clk 0:00:11]}  Rxb2 {[%clk 0:00:13]} 26. Nd6 {[%clk 0:00:10]}  Ra8 {[%clk 0:00:11]} 27. Bxf7+ {[%clk 0:00:08]}  Kg7 {[%clk 0:00:11]} 28. Be3 {[%clk 0:00:03]}  Nc8 {[%clk 0:00:10]} 29. Nxc8 {[%clk 0:00:01]}  Kxf7 {[%clk 0:00:08]} 0-1


[Site "https://www.chess.com"]

[Event "Titled Tuesday Blitz November 15 Early 2022"]
[White "Gurel, Ediz"]
[Black "Adel, Sara"]
[WhiteFideId "44507356"]
[BlackFideId "10616764"]
[WhiteElo "2345"]
[BlackElo "1994"]
[Result "1-0"]
[Round "04"]
[TimeControl "180+1"]
[Date "2022.11.16"]
[WhiteClock "0:02:40"]
[BlackClock "0:02:43"]

1. d4 {[%clk 0:03:00]}  Nf6 {[%clk 0:02:59]} 2. c4 {[%clk 0:02:58]}  g6 {[%clk 0:03:00]} 3. Nf3 {[%clk 0:02:55]}  Bg7 {[%clk 0:02:59]} 4. Bf4 {[%clk 0:02:55]}  d6 {[%clk 0:02:59]} 5. Nc3 {[%clk 0:02:56]}  Nbd7 {[%clk 0:03:00]} 6. h4 {[%clk 0:02:56]}  c5 {[%clk 0:03:00]} 7. d5 {[%clk 0:02:56]}  h5 {[%clk 0:03:00]} 8. Qd2 {[%clk 0:02:56]}  a6 {[%clk 0:03:00]} 9. e4 {[%clk 0:02:55]}  Rb8 {[%clk 0:02:58]} 10. a4 {[%clk 0:02:54]}  Qa5 {[%clk 0:02:58]} 11. Bd3 {[%clk 0:02:39]}  b5 {[%clk 0:02:56]} 12. cxb5 {[%clk 0:02:38]}  axb5 {[%clk 0:02:48]} 13. Nxb5 {[%clk 0:02:39]}  c4 {[%clk 0:02:46]} 14. Qxa5 {[%clk 0:02:38]}  cxd3 {[%clk 0:02:45]} 15. Nc7+ {[%clk 0:02:38]}  Kf8 {[%clk 0:02:45]} 16. Ne6+ {[%clk 0:02:38]}  fxe6 {[%clk 0:02:45]} 17. Qd8+ {[%clk 0:02:39]}  Kf7 {[%clk 0:02:43]} 18. Ng5# {[%clk 0:02:40]} 1-0


[Site "https://www.chess.com"]